fUSD/lending_fUSD_20251001
["ID","MTS","AMOUNT","RATE_DAILY","PERIOD"]
[388674064,1759314643310,-1300.0,0.00020341,2]
[388674065,1759314643320,-520.43,0.00020365,2]
[388674066,1759314643330,-517.42,0.00020365,2]
[388674067,1759314643339,-515.51,0.0002037,2]
[388674068,1759314643349,-200.0,0.00020376,2]
[388674069,1759314643358,-250.0,0.00020386,2]
[388674070,1759314643368,-477.27142869,0.00020439,2]
[388674071,1759314643377,-189.43,0.0002045,2]
[388674072,1759314643387,-334.5472959,0.00020456,2]
[388674073,1759314643396,-1000.0,0.00020456,2]
[388674074,1759314643405,-344.4723227,0.00020456,2]
[388674075,1759314643415,-1000.0,0.00020456,2]
[388674076,1759314643424,-1000.0,0.00020456,2]
[388674077,1759314643434,-1000.0,0.00020456,2]
[388674078,1759314643443,-1000.0,0.00020456,2]
[388674079,1759314643453,-1000.0,0.00020456,2]
[388674080,1759314643462,-449.62361527,0.00020456,2]
[388674081,1759314643472,-200.0,0.00020456,2]
[388674082,1759314643482,-200.0,0.00020456,2]
[388674083,1759314643492,-500.0,0.00020456,2]
[388674084,1759314643502,-200.0,0.00020456,2]
[388674085,1759314643512,-500.0,0.00020456,2]
[388674086,1759314643521,-200.0,0.00020456,2]
[388674087,1759314643531,-500.0,0.00020456,2]
[388674088,1759314643541,-200.0,0.00020456,2]
[388674089,1759314643550,-500.0,0.00020456,2]
[388674090,1759314643559,-200.0,0.00020456,2]
[388674091,1759314643568,-500.0,0.00020456,2]
[388674092,1759314643578,-200.0,0.00020456,2]
[388674093,1759314643587,-500.0,0.00020456,2]
[388674094,1759314643597,-200.0,0.00020456,2]
[388674095,1759314643606,-500.0,0.00020456,2]
[388674096,1759314643615,-200.0,0.00020456,2]
[388674097,1759314643624,-500.0,0.00020456,2]
[388674098,1759314643633,-224.27076834,0.00020456,2]
[388674099,1759314643643,-500.0,0.00020456,2]
[388674100,1759314643652,-500.0,0.00020456,2]
[388674101,1759314643662,-500.0,0.00020456,2]
[388674102,1759314643672,-500.0,0.00020456,2]
[388674103,1759314643681,-500.0,0.00020456,2]
[388674104,1759314643693,-150.0,0.00020468,2]
[388674105,1759314643703,-3228.61,0.00020477,2]
[388674106,1759314643713,-500.0,0.00020496,2]
[388674107,1759314643723,-1500.0,0.00020496,2]
[388674108,1759314643732,-1000.0,0.00020496,2]
[388674109,1759314643742,-1500.0,0.00020496,2]
[388674110,1759314643751,-1500.0,0.00020496,2]
[388674111,1759314643766,-951.28144008,0.00020496,2]
[388674112,1759314643775,-1501.11732063,0.00020496,2]
[388674113,1759314643787,-1500.0,0.00020496,2]
[388674114,1759314643797,-1500.0,0.00020496,2]
[388674115,1759314643806,-1500.0,0.00020496,2]
[388674116,1759314643816,-532.62,0.0002054,2]
[388674117,1759314643826,-5495.88676678,0.0002054,2]
[388674118,1759314643837,-514.8,0.0002056,2]
[388674119,1759314643847,-150.0,0.00020568,4]
[388674120,1759314643857,-527.88,0.00020585,2]
[388674121,1759314643867,-515.14,0.00020585,2]
[388674122,1759314643877,-522.3,0.00020616,2]
[388674123,1759314643888,-231.17,0.00020617,2]
[388674124,1759314643897,-531.19,0.00020656,2]
[388674125,1759314643907,-1037.854,0.00020663,2]
[388674126,1759314643918,-621.0,0.00020663,2]
[388674127,1759314643929,-172.06388418,0.00020687,2]
[388674128,1759314643940,-527.45,0.00020708,2]
[388674129,1759314643950,-519.55,0.00020708,2]
[388674130,1759314643959,-156.587,0.00020709,2]
[388674131,1759314643968,-500.0,0.0002077,2]
[388674132,1759314643979,-528.6,0.00020771,2]
[388674133,1759314643989,-666.0,0.00020813,3]
[388674134,1759314643998,-5495.88676678,0.00020851,2]
[388674135,1759314644008,-150.0,0.0002093,2]
[388674136,1759314644017,-477.27142869,0.00020934,2]
[388674137,1759314644028,-598.18,0.00020938,2]
[388674138,1759314644039,-1423.1,0.00020938,2]
[388674139,1759314644049,-200.0,0.0002094,2]
[388674140,1759314644059,-150.25,0.00020941,2]
[388674141,1759314644068,-163.19370502,0.00020941,2]
[388674142,1759314644078,-150.0,0.00020942,4]
[388674143,1759314644087,-150.0,0.00020942,4]
[388674144,1759314644097,-150.99,0.00020951,2]
[388674145,1759314644106,-9460.65,0.00020951,2]
[388674146,1759314644116,-4591.84,0.00020951,2]
[388674147,1759314644125,-999.99,0.00020951,2]
[388674148,1759314644134,-19743.69,0.00020951,2]
[388674149,1759314644144,-150.99,0.00020951,2]
[388674150,1759314644154,-515.97,0.00020951,2]
[388674151,1759314644163,-522.81,0.00020952,2]
[388674152,1759314644172,-180.0,0.00020986,2]
[388674153,1759314644181,-532.47,0.0002099,2]
[388674154,1759314644192,-500.0,0.00021044,2]
[388674155,1759314644202,-2000.0,0.00021044,2]
[388674156,1759314644211,-1002.11507286,0.00021044,2]
[388674157,1759314644221,-2000.0,0.00021044,2]
[388674158,1759314644231,-1230.42162631,0.00021044,2]
[388674159,1759314644241,-1340.31866841,0.00021044,2]
[388674160,1759314644250,-2002.471142,0.00021044,2]
[388674161,1759314644260,-172.06388418,0.00021149,2]
[388674162,1759314644268,-5495.88676678,0.00021161,2]
[388674163,1759314644277,-598.18,0.00021212,2]
[388674164,1759314644288,-1423.1,0.00021212,2]
[388674165,1759314644297,-245.0,0.00021225,2]
[388674166,1759314644306,-168.0,0.00021245,2]
[388674167,1759314644316,-648.26911701,0.00021259,2]
[388674168,1759314644325,-150.0,0.00021316,4]
[388674169,1759314644335,-150.0,0.00021316,4]
[388674170,1759314644345,-500.0,0.00021318,2]
[388674171,1759314644354,-168.0,0.000214,2]
[388674172,1759314644365,-477.27142869,0.00021429,2]
[388674173,1759314644374,-5495.88676678,0.00021471,2]
[388674174,1759314644383,-598.18,0.00021485,2]
[388674175,1759314644392,-1423.1,0.00021485,2]
[388674176,1759314644402,-872.78795586,0.00021507,2]
[388674177,1759314644412,-245.0,0.0002154,2]
[388674178,1759314644422,-1611.41,0.00021586,2]
[388674179,1759314644432,-872.78795586,0.00021589,2]
[388674180,1759314644442,-500.0,0.00021592,2]
[388674181,1759314644452,-2500.0,0.00021592,2]
[388674182,1759314644462,-1083.83614329,0.00021592,2]
[388674183,1759314644472,-1035.5791,0.00021595,2]
[388674184,1759314644481,-1000.0,0.000216,2]
[388674185,1759314644491,-172.06388418,0.00021612,2]
[388674186,1759314644586,-1613.63,0.0002162,2]
[388674187,1759314644597,-231.17,0.00021647,2]
[388674188,1759314644607,-872.78795586,0.00021671,2]
[388674189,1759314644616,-245.0,0.00021674,2]
[388674190,1759314644626,-1425.0,0.00021679,2]
[388674191,1759314644635,-168.0,0.00021689,2]
[388674192,1759314644644,-150.0,0.0002169,4]
[388674193,1759314644654,-150.0,0.0002169,4]
[388674194,1759314644663,-1000.0,0.000217,2]
[388674195,1759314644673,-2754.4879,0.000217,2]
[388674196,1759314644682,-2754.4879,0.000217,2]
[388674197,1759314644693,-1300.0,0.00021711,2]
[388674198,1759314644702,-2115.03,0.00021726,2]
[388674199,1759314644711,-164.035,0.00021726,2]
[388674200,1759314644721,-1000.0,0.00021733,2]
[388674201,1759314644730,-1000.0,0.00021733,2]
[388674202,1759314644740,-168.0,0.00021739,2]
[388674203,1759314644750,-200.0,0.00021742,2]
[388674204,1759314644774,-872.78795586,0.00021753,2]
[388674205,1759314644783,-598.18,0.00021759,2]
[388674206,1759314644793,-1423.1,0.00021759,2]
[388674207,1759314644802,-6244.62007824,0.0002178,2]
[388674208,1759314644811,-201.55781785,0.0002178,2]
[388674209,1759314644821,-5495.88676678,0.00021781,2]
[388674210,1759314644833,-9288.37560313,0.000218,2]
[388674211,1759314644843,-173.9,0.00021801,2]
[388674212,1759314644852,-150.0,0.00021813,2]
[388674213,1759314644861,-672.43,0.00021817,2]
[388674214,1759314644871,-5000.0,0.00021817,2]
[388674215,1759314644880,-920.69701626,0.00021817,2]
[388674216,1759314644890,-255.70720543,0.00021817,2]
[388674217,1759314644899,-12350.0,0.00021821,4]
[388674218,1759314644909,-150.0,0.00021825,2]
[388674219,1759314644919,-6244.62007821,0.00021845,2]
[388674220,1759314644928,-1000.0,0.0002185,2]
[388674221,1759314644937,-1000.0,0.00021861,2]
[388674222,1759314644948,-872.78795586,0.00021863,2]
[388674223,1759314644958,-500.0,0.00021866,2]
[388674224,1759314644967,-150.25,0.0002187,2]
[388674225,1759314644977,-119906.05131183,0.0002188,2]
[388674226,1759314644987,-156.6494777,0.0002188,2]
[388674227,1759314644997,-150.0,0.00021891,2]
[388674228,1759314645007,-150.0,0.00021891,2]
[388674229,1759314645016,-153.15330619,0.00021891,2]
[388674230,1759314645025,-468.0,0.00021891,2]
[388674231,1759314645034,-151.87650554,0.00021891,2]
[388674232,1759314645043,-500.0,0.00021891,2]
[388674233,1759314645053,-500.0,0.00021891,2]
[388674234,1759314645062,-151.50666758,0.00021891,2]
[388674235,1759314645071,-150.0,0.00021891,2]
[388674236,1759314645081,-150.0,0.00021891,2]
[388674237,1759314645090,-150.0,0.00021891,2]
[388674238,1759314645099,-150.0,0.00021891,2]
[388674239,1759314645109,-150.0,0.00021891,2]
[388674240,1759314645119,-150.0,0.00021891,2]
[388674241,1759314645128,-150.0,0.00021891,2]
[388674242,1759314645138,-150.0,0.00021891,2]
[388674243,1759314645148,-1000.0,0.00021893,2]
[388674244,1759314645159,-1000.0,0.000219,2]
[388674245,1759314645169,-1012.719,0.000219,2]
[388674246,1759314645178,-1000.0,0.000219,2]
[388674247,1759314645189,-1000.0,0.000219,2]
[388674248,1759314645198,-1000.0,0.000219,2]
[388674249,1759314645208,-1000.0,0.000219,2]
[388674250,1759314645217,-1000.0,0.000219,2]
[388674251,1759314645226,-1000.0,0.000219,2]
[388674252,1759314645235,-1000.0,0.000219,2]
[388674253,1759314645245,-786.68,0.000219,7]
[388674254,1759314645254,-150.0,0.00021904,2]
[388674255,1759314645263,-500.0,0.00021904,2]
[388674256,1759314645273,-500.0,0.00021904,2]
[388674257,1759314645282,-500.0,0.00021904,2]
[388674258,1759314645293,-150.0,0.00021904,2]
[388674259,1759314645302,-150.25,0.00021907,2]
[388674260,1759314645311,-1862.73177515,0.00021907,2]
[388674261,1759314645321,-6244.62007821,0.0002191,2]
[388674262,1759314645331,-245.0,0.00021912,2]
[388674263,1759314645340,-1000.0,0.00021916,2]
[388674264,1759314645350,-1000.0,0.00021916,2]
[388674265,1759314645360,-1000.0,0.00021916,2]
[388674266,1759314645370,-3000.0,0.00021916,2]
[388674267,1759314645380,-10000.0,0.00021916,2]
[388674268,1759314645390,-300.0,0.00021916,2]
[388674269,1759314645400,-666.0,0.00021916,2]
[388674270,1759314645409,-158035.84714775,0.00021917,2]
[388674271,1759314645419,-277.68044029,0.00021917,2]
[388674273,1759314645429,-500.0,0.00021917,2]
[388674274,1759314645439,-772.01,0.00021917,2]
[388674275,1759314645448,-500.0,0.00021917,2]
[388674276,1759314645457,-500.0,0.00021917,2]
[388674277,1759314645466,-1428.09,0.00021917,2]
[388674278,1759314645475,-514.84,0.00021917,2]
[388674279,1759314645485,-500.98108728,0.00021917,2]
[388674280,1759314645495,-1039.54,0.00021917,2]
[388674281,1759314645505,-500.0,0.00021917,2]
[388674282,1759314645515,-500.0,0.00021917,2]
[388674283,1759314645525,-500.0,0.00021917,2]
[388674284,1759314645536,-500.0,0.00021917,2]
[388674285,1759314645546,-590.43,0.00021917,2]
[388674286,1759314645556,-2457.17,0.00021917,2]
[388674287,1759314645565,-988.85,0.00021917,2]
[388674288,1759314645574,-500.0,0.00021917,2]
[388674289,1759314645584,-961.51,0.00021917,2]
[388674290,1759314645593,-2494.86,0.00021917,2]
[388674291,1759314645602,-500.0,0.00021917,2]
[388674292,1759314645612,-500.0,0.00021917,2]
[388674293,1759314645622,-500.0,0.00021917,2]
[388674294,1759314645631,-500.0,0.00021917,2]
[388674295,1759314645640,-500.0,0.00021917,2]
[388674296,1759314645649,-500.0,0.00021917,2]
[388674297,1759314645659,-500.0,0.00021917,2]
[388674298,1759314645668,-1667.04,0.00021917,2]
[388674299,1759314645677,-500.0,0.00021917,2]
[388674300,1759314645687,-829.8,0.00021917,2]
[388674301,1759314645696,-894.44,0.00021917,2]
[388674302,1759314645705,-535.58,0.00021917,2]
[388674303,1759314645715,-500.0,0.00021917,2]
[388674304,1759314645724,-500.0,0.00021917,2]
[388674305,1759314645734,-1170.79,0.00021917,2]
[388674306,1759314645743,-711.89,0.00021917,2]
[388674307,1759314645754,-732.23,0.00021917,2]
[388674308,1759314645767,-500.0,0.00021917,2]
[388674309,1759314645777,-500.0,0.00021917,2]
[388674310,1759314645788,-501.49274175,0.00021917,2]
[388674311,1759314645797,-736.54,0.00021917,2]
[388674312,1759314645807,-157.28,0.00021917,2]
[388674313,1759314645817,-500.0,0.00021917,2]
[388674314,1759314645826,-500.0,0.00021917,2]
[388674315,1759314645835,-500.0,0.00021917,2]
[388674316,1759314645845,-500.0,0.00021917,2]
[388674317,1759314645854,-500.0,0.00021917,2]
[388674318,1759314645864,-500.0,0.00021917,2]
[388674319,1759314645873,-500.0,0.00021917,2]
[388674320,1759314645883,-500.0,0.00021917,2]
[388674321,1759314645893,-500.0,0.00021917,2]
[388674322,1759314645902,-500.0,0.00021917,2]
[388674323,1759314645912,-845.3,0.00021917,2]
[388674324,1759314645922,-500.0,0.00021917,2]
[388674325,1759314645932,-500.0,0.00021917,2]
[388674326,1759314645943,-500.0,0.00021917,2]
[388674327,1759314645952,-500.0,0.00021917,2]
[388674328,1759314645962,-1888.5,0.00021917,2]
[388674330,1759314645972,-500.0,0.00021917,2]
[388674331,1759314645982,-500.0,0.00021917,2]
[388674333,1759314645992,-500.0,0.00021917,2]
[388674335,1759314646001,-500.0,0.00021917,2]
[388674337,1759314646011,-500.0,0.00021917,2]
[388674339,1759314646020,-500.0,0.00021917,2]
[388674340,1759314646030,-477.58088602,0.00021917,2]
[388674341,1759314646039,-500.0,0.00021917,2]
[388674342,1759314646049,-500.0,0.00021917,2]
[388674343,1759314646058,-500.0,0.00021917,2]
[388674344,1759314646067,-500.0,0.00021917,2]
[388674345,1759314646077,-500.0,0.00021917,2]
[388674346,1759314646087,-500.0,0.00021917,2]
[388674347,1759314646097,-500.0,0.00021917,2]
[388674348,1759314646106,-295.42824554,0.00021917,2]
[388674349,1759314646115,-500.0,0.00021917,2]
[388674350,1759314646124,-500.0,0.00021917,2]
[388674351,1759314646134,-500.0,0.00021917,2]
[388674353,1759314646143,-500.0,0.00021917,2]
[388674354,1759314646153,-500.0,0.00021917,2]
[388674355,1759314646162,-500.0,0.00021917,2]
[388674356,1759314646171,-500.0,0.00021917,2]
[388674357,1759314646180,-500.0,0.00021917,2]
[388674358,1759314646192,-500.0,0.00021917,2]
[388674359,1759314646202,-500.0,0.00021917,2]
[388674360,1759314646212,-500.0,0.00021917,2]
[388674361,1759314646224,-500.0,0.00021917,2]
[388674362,1759314646235,-296.1172547,0.00021917,2]
[388674363,1759314646245,-500.0,0.00021917,2]
[388674364,1759314646254,-500.0,0.00021917,2]
[388674365,1759314646264,-500.0,0.00021917,2]
[388674366,1759314646273,-500.0,0.00021917,2]
[388674367,1759314646282,-500.0,0.00021917,2]
[388674368,1759314646291,-500.0,0.00021917,2]
[388674369,1759314646301,-500.0,0.00021917,2]
[388674370,1759314646310,-500.0,0.00021917,2]
[388674371,1759314646320,-500.0,0.00021917,2]
[388674372,1759314646329,-500.0,0.00021917,2]
[388674373,1759314646339,-941.39,0.00021917,2]
[388674374,1759314646348,-500.0,0.00021917,2]
[388674375,1759314646357,-500.0,0.00021917,2]
[388674376,1759314646367,-720.92,0.00021917,2]
[388674377,1759314646376,-500.0,0.00021917,2]
[388674378,1759314646385,-34600.2272684,0.00021917,2]
[388674379,1759314646394,-500.0,0.00021917,2]
[388674380,1759314646404,-500.0,0.00021917,2]
[388674381,1759314646413,-5523.049845,0.00021917,2]
[388674382,1759314646422,-500.0,0.00021917,2]
[388674383,1759314646432,-500.0,0.00021917,2]
[388674384,1759314646442,-500.0,0.00021917,2]
[388674385,1759314646452,-152.336039,0.00021917,2]
[388674386,1759314646461,-1566.39,0.00021917,2]
[388674387,1759314646471,-172.088584,0.00021917,2]
[388674388,1759314646480,-500.0,0.00021917,2]
[388674389,1759314646490,-5388.956839,0.00021917,2]
[388674390,1759314646500,-500.0,0.00021917,2]
[388674391,1759314646510,-500.0,0.00021917,2]
[388674392,1759314646519,-500.0,0.00021917,2]
[388674393,1759314646529,-500.0,0.00021917,2]
[388674394,1759314646538,-3006.026575,0.00021917,2]
[388674395,1759314646548,-500.0,0.00021917,2]
[388674396,1759314646557,-226.1740866,0.00021917,2]
[388674397,1759314646567,-500.0,0.00021917,2]
[388674398,1759314646576,-500.0,0.00021917,2]
[388674399,1759314646586,-500.0,0.00021917,2]
[388674400,1759314646595,-500.0,0.00021917,2]
[388674401,1759314646604,-1708.77,0.00021917,2]
[388674402,1759314646613,-500.0,0.00021917,2]
[388674403,1759314646622,-500.0,0.00021917,2]
[388674404,1759314646632,-500.0,0.00021917,2]
[388674405,1759314646641,-500.0,0.00021917,2]
[388674406,1759314646651,-500.0,0.00021917,2]
[388674407,1759314646660,-500.0,0.00021917,2]
[388674408,1759314646669,-500.0,0.00021917,2]
[388674409,1759314646678,-500.0,0.00021917,2]
[388674410,1759314646687,-809.49,0.00021917,2]
[388674411,1759314646696,-500.0,0.00021917,2]
[388674412,1759314646706,-498.73892049,0.00021917,2]
[388674413,1759314646715,-500.0,0.00021917,2]
[388674414,1759314646725,-500.0,0.00021917,2]
[388674415,1759314646735,-500.0,0.00021917,2]
[388674416,1759314646744,-500.0,0.00021917,2]
[388674417,1759314646753,-500.0,0.00021917,2]
[388674418,1759314646767,-200.0,0.00021917,2]
[388674419,1759314646776,-500.0,0.00021917,2]
[388674420,1759314646786,-500.0,0.00021917,2]
[388674421,1759314646795,-711.77,0.00021917,2]
[388674422,1759314646807,-178.76754661,0.00021917,2]
[388674423,1759314646816,-1230.0,0.00021917,2]
[388674424,1759314646826,-1230.0,0.00021917,2]
[388674425,1759314646836,-1230.0,0.00021917,2]
[388674426,1759314646846,-500.0,0.00021917,2]
[388674427,1759314646856,-527.42686499,0.00021917,2]
[388674428,1759314646865,-1112.2,0.00021917,2]
[388674429,1759314646875,-768.74,0.00021917,2]
[388674430,1759314646885,-152.0,0.00021917,2]
[388674431,1759314646893,-500.0,0.00021917,2]
[388674432,1759314646903,-500.0,0.00021917,2]
[388674433,1759314646912,-500.0,0.00021917,2]
[388674434,1759314646921,-152.0,0.00021917,2]
[388674435,1759314646931,-828.83,0.00021917,2]
[388674436,1759314646940,-152.0,0.00021917,2]
[388674437,1759314646949,-152.0,0.00021917,2]
[388674438,1759314646959,-153.09443804,0.00021917,2]
[388674439,1759314646968,-1037.04,0.00021917,2]
[388674440,1759314646977,-500.0,0.00021917,2]
[388674441,1759314646987,-1854.51,0.00021917,2]
[388674442,1759314646996,-151.0,0.00021917,2]
[388674443,1759314647005,-1271.09,0.00021917,2]
[388674444,1759314647014,-500.0,0.00021917,2]
[388674445,1759314647023,-151.0,0.00021917,2]
[388674446,1759314647033,-500.0,0.00021917,2]
[388674447,1759314647043,-500.0,0.00021917,2]
[388674448,1759314647052,-1372.42,0.00021917,2]
[388674449,1759314647061,-1997.7,0.00021917,2]
[388674450,1759314647071,-500.0,0.00021917,2]
[388674451,1759314647080,-500.0,0.00021917,2]
[388674452,1759314647090,-511.09,0.00021917,2]
[388674453,1759314647099,-500.0,0.00021917,2]
[388674454,1759314647109,-151.0,0.00021917,2]
[388674455,1759314647119,-500.0,0.00021917,2]
[388674456,1759314647129,-500.0,0.00021917,2]
[388674457,1759314647139,-500.0,0.00021917,2]
[388674458,1759314647148,-500.0,0.00021917,2]
[388674459,1759314647157,-1083.86,0.00021917,2]
[388674460,1759314647168,-668.35,0.00021917,2]
[388674461,1759314647177,-888.92,0.00021917,2]
[388674462,1759314647187,-500.0,0.00021917,2]
[388674463,1759314647197,-500.0,0.00021917,2]
[388674464,1759314647206,-500.0,0.00021917,2]
[388674465,1759314647215,-500.0,0.00021917,2]
[388674466,1759314647225,-500.0,0.00021917,2]
[388674467,1759314647234,-913.44,0.00021917,2]
[388674468,1759314647243,-1138.58,0.00021917,2]
[388674469,1759314647253,-585.66,0.00021917,2]
[388674470,1759314647262,-810.44,0.00021917,2]
[388674471,1759314647271,-732.83,0.00021917,2]
[388674472,1759314647280,-799.67,0.00021917,2]
[388674473,1759314647290,-1572.83,0.00021917,2]
[388674474,1759314647298,-500.0,0.00021917,2]
[388674475,1759314647308,-1151.2,0.00021917,2]
[388674476,1759314647317,-500.0,0.00021917,2]
[388674477,1759314647326,-877.74,0.00021917,2]
[388674478,1759314647335,-1021.89,0.00021917,2]
[388674479,1759314647344,-644.73,0.00021917,2]
[388674480,1759314647353,-500.0,0.00021917,2]
[388674481,1759314647362,-614.7,0.00021917,2]
[388674482,1759314647371,-500.0,0.00021917,2]
[388674483,1759314647380,-500.0,0.00021917,2]
[388674484,1759314647390,-500.0,0.00021917,2]
[388674485,1759314647399,-709.09,0.00021917,2]
[388674486,1759314647408,-500.0,0.00021917,2]
[388674487,1759314647417,-1218.19,0.00021917,2]
[388674488,1759314647427,-1295.37,0.00021917,2]
[388674489,1759314647436,-500.0,0.00021917,2]
[388674490,1759314647448,-588.93,0.00021917,2]
[388674491,1759314647458,-500.0,0.00021917,2]
[388674492,1759314647468,-500.0,0.00021917,2]
[388674493,1759314647477,-787.03,0.00021917,2]
[388674494,1759314647486,-500.0,0.00021917,2]
[388674495,1759314647496,-500.0,0.00021917,2]
[388674496,1759314647507,-500.0,0.00021917,2]
[388674497,1759314647516,-661.2,0.00021917,2]
[388674498,1759314647525,-500.0,0.00021917,2]
[388674499,1759314647535,-500.0,0.00021917,2]
[388674500,1759314647545,-500.0,0.00021917,2]
[388674501,1759314647554,-500.0,0.00021917,2]
[388674502,1759314647563,-611.53,0.00021917,2]
[388674503,1759314647575,-500.0,0.00021917,2]
[388674504,1759314647585,-500.0,0.00021917,2]
[388674505,1759314647595,-676.14,0.00021917,2]
[388674506,1759314647605,-619.8,0.00021917,2]
[388674507,1759314647614,-1941.49,0.00021917,2]
[388674508,1759314647625,-1082.33,0.00021917,2]
[388674509,1759314647635,-547.19566138,0.00021917,2]
[388674510,1759314647644,-500.0,0.00021917,2]
[388674511,1759314647653,-600.05,0.00021917,2]
[388674512,1759314647663,-500.0,0.00021917,2]
[388674513,1759314647672,-500.0,0.00021917,2]
[388674514,1759314647681,-500.0,0.00021917,2]
[388674515,1759314647692,-500.0,0.00021917,2]
[388674516,1759314647701,-685.5,0.00021917,2]
[388674517,1759314647711,-500.0,0.00021917,2]
[388674518,1759314647721,-1421.91,0.00021917,2]
[388674519,1759314647731,-1443.97,0.00021917,2]
[388674520,1759314647740,-500.0,0.00021917,2]
[388674521,1759314647750,-705.61,0.00021917,2]
[388674522,1759314647762,-500.0,0.00021917,2]
[388674523,1759314647772,-836.14,0.00021917,2]
[388674524,1759314647782,-534.32,0.00021917,2]
[388674525,1759314647791,-500.0,0.00021917,2]
[388674526,1759314647801,-1416.2,0.00021917,2]
[388674527,1759314647810,-500.48882865,0.00021917,2]
[388674528,1759314647819,-500.0,0.00021917,2]
[388674529,1759314647829,-500.0,0.00021917,2]
[388674530,1759314647837,-500.0,0.00021917,2]
[388674531,1759314647847,-699.51,0.00021917,2]
[388674532,1759314647856,-500.0,0.00021917,2]
[388674533,1759314647866,-328.15920678,0.00021917,2]
[388674534,1759314647876,-1515.14,0.00021917,2]
[388674535,1759314647886,-3121.82,0.00021917,2]
[388674536,1759314647897,-591.08,0.00021917,2]
[388674537,1759314647906,-868.53,0.00021917,2]
[388674538,1759314647917,-500.0,0.00021917,2]
[388674539,1759314647926,-950.1,0.00021917,2]
[388674540,1759314647936,-500.0,0.00021917,2]
[388674541,1759314647947,-504.00857416,0.00021917,2]
[388674542,1759314647956,-715.88,0.00021917,2]
[388674543,1759314647966,-516.97,0.00021917,2]
[388674544,1759314647976,-1508.18,0.00021917,2]
[388674545,1759314647986,-500.0,0.00021917,2]
[388674546,1759314647996,-500.0,0.00021917,2]
[388674547,1759314648006,-868.68,0.00021917,2]
[388674548,1759314648015,-500.0,0.00021917,2]
[388674549,1759314648027,-500.0,0.00021917,2]
[388674550,1759314648037,-722.84,0.00021917,2]
[388674551,1759314648047,-503.58891547,0.00021917,2]
[388674552,1759314648056,-521.63,0.00021917,2]
[388674553,1759314648066,-1068.69,0.00021917,2]
[388674554,1759314648076,-1658.1,0.00021917,2]
[388674555,1759314648086,-827.95,0.00021917,2]
[388674556,1759314648096,-745.26,0.00021917,2]
[388674557,1759314648106,-500.0,0.00021917,2]
[388674558,1759314648116,-1066.59,0.00021917,2]
[388674559,1759314648126,-500.0,0.00021917,2]
[388674560,1759314648136,-509.38,0.00021917,2]
[388674561,1759314648146,-1152.03,0.00021917,2]
[388674562,1759314648157,-3003.26,0.00021917,2]
[388674563,1759314648167,-2407.66,0.00021917,2]
[388674564,1759314648176,-690.31,0.00021917,2]
[388674565,1759314648188,-500.0,0.00021917,2]
[388674566,1759314648199,-500.0,0.00021917,2]
[388674567,1759314648208,-500.0,0.00021917,2]
[388674568,1759314648220,-367.96247729,0.00021917,2]
[388674569,1759314648230,-500.0,0.00021917,2]
[388674570,1759314648240,-530.5460811,0.00021917,2]